[Event "CCT Chessable Masters Play-In 2025"]
[Site "Online"]
[Date "2025.02.17"]
[Round "2.6"]
[White "Andreikin, Dmitry"]
[Black "Gledura, Benjamin"]
[Result "0-1"]
[ECO "B10"]
[WhiteElo "2695"]
[BlackElo "2659"]
[PlyCount "98"]
[EventDate "2025.02.13"]
[EventType "swiss"]
[EventCountry "NET"]
[TimeControl "600"]
[WhiteClock "0:00:09"]
[BlackClock "0:00:36"]

1. e4 {[%emt 0:00:01]} c6 {[%emt 0:00:02]} 2. Nf3 {[%emt 0:00:11]} d5 {[%emt 0:00:01]} 3. d3 {[%emt 0:00:01]} Qc7 {[%emt 0:00:08]} 4. exd5 {[%emt 0:00:04]} cxd5 {[%emt 0:00:02]} 5. c4 {[%emt 0:00:01]} Nf6 {[%emt 0:00:04]} 6. Nc3 {[%emt 0:00:02]} e6 {[%emt 0:00:18]} 7. Nb5 {[%emt 0:00:02]} Qd8 {[%emt 0:00:07]} 8. Bf4 {[%emt 0:00:09]} Bb4+ {[%emt 0:00:11]} 9. Nd2 {[%emt 0:00:01]} Na6 {[%emt 0:00:41]} 10. a3 {[%emt 0:00:07]} Be7 {[%emt 0:00:01]} 11. b4 {[%emt 0:00:28]} O-O {[%emt 0:00:01]} 12. c5 {[%emt 0:00:04]} d4 {[%emt 0:00:59]} 13. Nc4 {[%emt 0:00:46]} Nd5 {[%emt 0:00:02]} 14. Be5 {[%emt 0:00:13]} Bf6 {[%emt 0:00:11]} 15. Qh5 {[%emt 0:00:20]} Nac7 {[%emt 0:01:26]} 16. Nxd4 {[%emt 0:01:02]} b6 {[%emt 0:00:34]} 17. Nf3 {[%emt 0:00:50]} bxc5 {[%emt 0:00:05]} 18. bxc5 {[%emt 0:00:00]} Nf4 {[%emt 0:00:32]} 19. Bxf6 {[%emt 0:00:18]} gxf6 {[%emt 0:00:15]} 20. Qg4+ {[%emt 0:00:19]} Ng6 {[%emt 0:00:01]} 21. h4 {[%emt 0:00:16]} e5 {[%emt 0:00:02]} 22. Qg3 {[%emt 0:00:06]} Kh8 {[%emt 0:00:04]} 23. Nd6 {[%emt 0:00:46]} Ne6 {[%emt 0:00:20]} 24. h5 {[%emt 0:00:02]} Ngf4 {[%emt 0:00:06]} 25. h6 {[%emt 0:00:15]} Qa5+ {[%emt 0:00:11]} 26. Nd2 {[%emt 0:00:01]} Qc3 {[%emt 0:00:06]} 27. Rd1 {[%emt 0:00:16]} Qxc5 {[%emt 0:00:36]} 28. N2e4 {[%emt 0:00:32]} Qa5+ {[%emt 0:00:06]} 29. Rd2 {[%emt 0:00:01]} Qxa3 {[%emt 0:00:03]} 30. Be2 {[%emt 0:00:11]} f5 {[%emt 0:01:00]} 31. Nxf5 {[%emt 0:01:00]} Rg8 {[%emt 0:00:01]} 32. Ng7 {[%emt 0:00:01]} Nxg7 {[%emt 0:00:02]} 33. Qg5 {[%emt 0:00:25]} Qa1+ {[%emt 0:00:25]} 34. Rd1 {[%emt 0:00:03]} Qa5+ {[%emt 0:00:01]} 35. Kf1 {[%emt 0:00:06]} Ne8 {[%emt 0:00:02]} 36. Qe7 {[%emt 0:00:06]} Ng6 {[%emt 0:00:14]} 37. Qxf7 {[%emt 0:00:02]} Rf8 {[%emt 0:00:05]} 38. Qb3 {[%emt 0:00:06]} Bf5 {[%emt 0:00:02]} 39. Ng5 {[%emt 0:00:03]} Qc7 {[%emt 0:00:01]} 40. Qa3 {[%emt 0:00:09]} Qd6 {[%emt 0:00:02]} 41. Qa5 {[%emt 0:00:02]} Qe7 {[%emt 0:00:02]} 42. Nf3 {[%emt 0:00:01]} Rd8 {[%emt 0:00:02]} 43. Re1 {[%emt 0:00:01]} Nf6 {[%emt 0:00:03]} 44. g3 {[%emt 0:00:03]} Ng4 {[%emt 0:00:01]} 45. Kg2 {[%emt 0:00:01]} Qf6 {[%emt 0:00:01]} 46. Qxa7 {[%emt 0:00:02]} e4 {[%emt 0:00:02]} 47. dxe4 {[%emt 0:00:02]} Bxe4 {[%emt 0:00:00]} 48. Bd1 {[%emt 0:00:03]} Bxf3+ {[%emt 0:00:01]} 49. Kg1 {[%emt 0:00:10]} Bxd1 {[%emt 0:00:02]} 0-1

[Event "CCT Chessable Masters Play-In 2025"]
[Site "Online"]
[Date "2025.02.17"]
[Round "2.7"]
[White "Demchenko, Anton"]
[Black "Duda, Jan-Krzysztof"]
[Result "0-1"]
[ECO "B31"]
[WhiteElo "2619"]
[BlackElo "2739"]
[PlyCount "143"]
[EventDate "2025.02.13"]
[EventType "swiss"]
[EventCountry "NET"]
[TimeControl "600"]
[WhiteClock "0:00:03"]
[BlackClock "0:00:32"]

1. e4 {[%emt 0:00:01]} c5 {[%emt 0:00:02]} 2. Nf3 {[%emt 0:00:01]} Nc6 {[%emt 0:00:00]} 3. Bb5 {[%emt 0:00:01]} g6 {[%emt 0:00:01]} 4. O-O {[%emt 0:00:02]} Bg7 {[%emt 0:00:02]} 5. d3 {[%emt 0:00:01]} e5 {[%emt 0:00:03]} 6. a3 {[%emt 0:00:01]} Nge7 {[%emt 0:00:05]} 7. b4 {[%emt 0:00:01]} d6 {[%emt 0:00:00]} 8. Bg5 {[%emt 0:00:15]} Bd7 {[%emt 0:00:36]} 9. bxc5 {[%emt 0:00:15]} dxc5 {[%emt 0:00:00]} 10. Nbd2 {[%emt 0:00:16]} h6 {[%emt 0:00:02]} 11. Be3 {[%emt 0:00:49]} b6 {[%emt 0:00:13]} 12. a4 {[%emt 0:00:05]} O-O {[%emt 0:00:07]} 13. Nc4 {[%emt 0:00:01]} Be6 {[%emt 0:00:18]} 14. a5 {[%emt 0:00:17]} Bxc4 {[%emt 0:00:28]} 15. Bxc4 {[%emt 0:00:01]} Nxa5 {[%emt 0:00:01]} 16. Ba2 {[%emt 0:00:00]} Kh7 {[%emt 0:00:16]} 17. h4 {[%emt 0:00:37]} Qd7 {[%emt 0:00:12]} 18. h5 {[%emt 0:00:09]} Rad8 {[%emt 0:00:10]} 19. g3 {[%emt 0:00:41]} c4 {[%emt 0:00:29]} 20. dxc4 {[%emt 0:00:29]} Qh3 {[%emt 0:01:09]} 21. Qe2 {[%emt 0:00:02]} Nb7 {[%emt 0:00:24]} 22. c5 {[%emt 0:00:46]} Nxc5 {[%emt 0:00:02]} 23. Bxc5 {[%emt 0:00:01]} bxc5 {[%emt 0:00:01]} 24. Bc4 {[%emt 0:00:38]} Rd7 {[%emt 0:00:08]} 25. Rfd1 {[%emt 0:00:24]} Rxd1+ {[%emt 0:00:51]} 26. Qxd1 {[%emt 0:00:01]} Qxh5 {[%emt 0:00:02]} 27. Rxa7 {[%emt 0:01:15]} Bf6 {[%emt 0:00:40]} 28. Kg2 {[%emt 0:00:08]} Kg7 {[%emt 0:00:03]} 29. Qd6 {[%emt 0:00:05]} Qg4 {[%emt 0:00:16]} 30. Rxe7 {[%emt 0:00:13]} Qxe4 {[%emt 0:00:12]} 31. Bd3 {[%emt 0:00:21]} Bxe7 {[%emt 0:00:06]} 32. Qxe7 {[%emt 0:00:00]} Qc6 {[%emt 0:00:15]} 33. Qxe5+ {[%emt 0:00:04]} f6 {[%emt 0:00:00]} 34. Qe7+ {[%emt 0:00:18]} Rf7 {[%emt 0:00:02]} 35. Qe3 {[%emt 0:00:00]} Qd6 {[%emt 0:00:10]} 36. Nd2 {[%emt 0:00:14]} f5 {[%emt 0:00:08]} 37. Nc4 {[%emt 0:00:06]} Qd5+ {[%emt 0:00:09]} 38. Kg1 {[%emt 0:00:02]} h5 {[%emt 0:00:07]} 39. f4 {[%emt 0:00:07]} Ra7 {[%emt 0:00:13]} 40. Kh2 {[%emt 0:00:07]} Kh6 {[%emt 0:00:07]} 41. Qe8 {[%emt 0:00:03]} Qd4 {[%emt 0:00:02]} 42. Kg2 {[%emt 0:00:03]} Qd5+ {[%emt 0:00:16]} 43. Kf2 {[%emt 0:00:02]} Ra8 {[%emt 0:00:05]} 44. Qe1 {[%emt 0:00:08]} Qd4+ {[%emt 0:00:02]} 45. Kg2 {[%emt 0:00:00]} h4 {[%emt 0:00:03]} 46. Ne5 {[%emt 0:00:07]} Ra1 {[%emt 0:00:13]} 47. Nf7+ {[%emt 0:00:12]} Kg7 {[%emt 0:00:03]} 48. Qe5+ {[%emt 0:00:01]} Kxf7 {[%emt 0:00:05]} 49. Bc4+ {[%emt 0:00:05]} Qxc4 {[%emt 0:00:01]} 50. Qxa1 {[%emt 0:00:01]} Qe2+ {[%emt 0:00:03]} 51. Kg1 {[%emt 0:00:04]} Qe3+ {[%emt 0:00:01]} 52. Kh1 {[%emt 0:00:01]} Qf3+ {[%emt 0:00:01]} 53. Kg1 {[%emt 0:00:00]} Qxg3+ {[%emt 0:00:01]} 54. Kh1 {[%emt 0:00:00]} Qh3+ {[%emt 0:00:03]} 55. Kg1 {[%emt 0:00:01]} Qg4+ {[%emt 0:00:00]} 56. Kh1 {[%emt 0:00:01]} Qf3+ {[%emt 0:00:03]} 57. Kg1 {[%emt 0:00:00]} Qe3+ {[%emt 0:00:00]} 58. Kh1 {[%emt 0:00:01]} Qe4+ {[%emt 0:00:01]} 59. Kh2 {[%emt 0:00:01]} Qxf4+ {[%emt 0:00:01]} 60. Kh1 {[%emt 0:00:00]} Qf3+ {[%emt 0:00:01]} 61. Kh2 {[%emt 0:00:01]} Qg3+ {[%emt 0:00:01]} 62. Kh1 {[%emt 0:00:00]} Qh3+ {[%emt 0:00:00]} 63. Kg1 {[%emt 0:00:01]} Qg4+ {[%emt 0:00:00]} 64. Kh1 {[%emt 0:00:01]} Qe4+ {[%emt 0:00:01]} 65. Kh2 {[%emt 0:00:01]} Qxc2+ {[%emt 0:00:01]} 66. Kh1 {[%emt 0:00:00]} Qe4+ {[%emt 0:00:01]} 67. Kh2 {[%emt 0:00:00]} Qf4+ {[%emt 0:00:01]} 68. Kh1 {[%emt 0:00:01]} Qd4 {[%emt 0:00:03]} 69. Qa6 {[%emt 0:00:03]} Kg7 {[%emt 0:00:03]} 70. Qb7+ {[%emt 0:00:02]} Kh6 {[%emt 0:00:00]} 71. Qa8 {[%emt 0:00:00]} Qe4+ {[%emt 0:00:02]} 72. Kh2 {[%emt 0:00:01]} 0-1

[Event "CCT Chessable Masters Play-In 2025"]
[Site "Online"]
[Date "2025.02.17"]
[Round "2.8"]
[White "Aryan Chopra"]
[Black "Nihal Sarin"]
[Result "0-1"]
[ECO "B04"]
[WhiteElo "2620"]
[BlackElo "2687"]
[PlyCount "74"]
[EventDate "2025.02.13"]
[EventType "swiss"]
[EventCountry "NET"]
[TimeControl "600"]
[WhiteClock "0:05:30"]
[BlackClock "0:06:27"]

1. e4 {[%emt 0:00:01]} Nf6 {[%emt 0:00:10]} 2. e5 {[%emt 0:00:09]} Nd5 {[%emt 0:00:01]} 3. d4 {[%emt 0:00:01]} d6 {[%emt 0:00:02]} 4. Nf3 {[%emt 0:00:00]} dxe5 {[%emt 0:00:02]} 5. Nxe5 {[%emt 0:00:01]} c6 {[%emt 0:00:00]} 6. Bc4 {[%emt 0:00:01]} Nd7 {[%emt 0:00:07]} 7. Nf3 {[%emt 0:00:00]} N7f6 {[%emt 0:00:01]} 8. O-O {[%emt 0:00:04]} Bg4 {[%emt 0:00:01]} 9. h3 {[%emt 0:00:00]} Bh5 {[%emt 0:00:01]} 10. Be2 {[%emt 0:00:02]} e6 {[%emt 0:00:01]} 11. c4 {[%emt 0:00:01]} Nb6 {[%emt 0:00:00]} 12. b3 {[%emt 0:00:01]} Be7 {[%emt 0:00:02]} 13. Bb2 {[%emt 0:00:02]} O-O {[%emt 0:00:01]} 14. Nbd2 {[%emt 0:00:21]} a5 {[%emt 0:00:01]} 15. a3 {[%emt 0:00:01]} Qc7 {[%emt 0:00:02]} 16. Re1 {[%emt 0:00:03]} Rfd8 {[%emt 0:00:01]} 17. Ne5 {[%emt 0:00:13]} Bxe2 {[%emt 0:00:02]} 18. Qxe2 {[%emt 0:00:00]} Bf8 {[%emt 0:00:14]} 19. Ndf3 {[%emt 0:00:03]} h6 {[%emt 0:00:00]} 20. Rad1 {[%emt 0:00:01]} Re8 {[%emt 0:00:01]} 21. g4 {[%emt 0:00:19]} Nfd7 {[%emt 0:00:12]} 22. h4 {[%emt 0:00:24]} Nxe5 {[%emt 0:00:16]} 23. dxe5 {[%emt 0:00:04]} Rad8 {[%emt 0:00:01]} 24. Bc3 {[%emt 0:00:03]} Nc8 {[%emt 0:00:41]} 25. b4 {[%emt 0:00:06]} axb4 {[%emt 0:00:03]} 26. axb4 {[%emt 0:00:00]} Ne7 {[%emt 0:00:04]} 27. h5 {[%emt 0:00:04]} b5 {[%emt 0:00:01]} 28. c5 {[%emt 0:00:32]} Rxd1 {[%emt 0:00:08]} 29. Rxd1 {[%emt 0:00:01]} Nd5 {[%emt 0:00:00]} 30. Bd2 {[%emt 0:00:01]} Ra8 {[%emt 0:00:01]} 31. Qe4 {[%emt 0:00:04]} Be7 {[%emt 0:00:06]} 32. Kg2 {[%emt 0:00:08]} Ra4 {[%emt 0:00:04]} 33. Qb1 {[%emt 0:00:11]} Qd8 {[%emt 0:00:28]} 34. Qc2 {[%emt 0:00:54]} Ra3 {[%emt 0:00:12]} 35. Rb1 {[%emt 0:00:13]} Bg5 {[%emt 0:00:18]} 36. Nxg5 {[%emt 0:00:04]} hxg5 {[%emt 0:00:00]} 37. Rb3 {[%emt 0:00:17]} Nf4+ {[%emt 0:00:08]} 0-1

[Event "CCT Chessable Masters Play-In 2025"]
[Site "Online"]
[Date "2025.02.17"]
[Round "2.9"]
[White "Giri, Anish"]
[Black "Fressinet, Laurent"]
[Result "1-0"]
[ECO "C65"]
[WhiteElo "2728"]
[BlackElo "2588"]
[PlyCount "59"]
[EventDate "2025.02.13"]
[EventType "swiss"]
[EventCountry "NET"]
[TimeControl "600"]
[WhiteClock "0:04:17"]
[BlackClock "0:02:17"]

1. e4 {[%emt 0:00:06]} e5 {[%emt 0:00:02]} 2. Nf3 {[%emt 0:00:01]} Nc6 {[%emt 0:00:01]} 3. Bb5 {[%emt 0:00:00]} Nf6 {[%emt 0:00:02]} 4. d3 {[%emt 0:00:04]} Bc5 {[%emt 0:00:01]} 5. Bxc6 {[%emt 0:00:01]} dxc6 {[%emt 0:00:01]} 6. O-O {[%emt 0:00:02]} Bd6 {[%emt 0:00:12]} 7. a4 {[%emt 0:00:02]} Bg4 {[%emt 0:00:33]} 8. h3 {[%emt 0:00:24]} Bh5 {[%emt 0:00:01]} 9. Nbd2 {[%emt 0:00:01]} Nd7 {[%emt 0:00:02]} 10. Nc4 {[%emt 0:00:02]} O-O {[%emt 0:00:21]} 11. g4 {[%emt 0:00:06]} Bg6 {[%emt 0:00:02]} 12. Kh1 {[%emt 0:00:10]} f6 {[%emt 0:00:21]} 13. Ne3 {[%emt 0:00:01]} Re8 {[%emt 0:00:16]} 14. Nf5 {[%emt 0:00:03]} Bf8 {[%emt 0:00:06]} 15. Be3 {[%emt 0:00:09]} a5 {[%emt 0:00:11]} 16. Rg1 {[%emt 0:00:33]} Kh8 {[%emt 0:00:04]} 17. h4 {[%emt 0:00:29]} Bf7 {[%emt 0:00:28]} 18. Rg3 {[%emt 0:00:01]} b5 {[%emt 0:00:38]} 19. Qd2 {[%emt 0:00:08]} g6 {[%emt 0:00:59]} 20. Nh6 {[%emt 0:00:43]} Be6 {[%emt 0:00:03]} 21. axb5 {[%emt 0:00:05]} cxb5 {[%emt 0:00:13]} 22. Rxa5 {[%emt 0:00:01]} Rxa5 {[%emt 0:00:17]} 23. Qxa5 {[%emt 0:00:00]} b4 {[%emt 0:00:02]} 24. g5 {[%emt 0:00:37]} fxg5 {[%emt 0:00:55]} 25. Bxg5 {[%emt 0:00:46]} Qa8 {[%emt 0:00:02]} 26. Qxa8 {[%emt 0:00:53]} Rxa8 {[%emt 0:00:00]} 27. d4 {[%emt 0:00:00]} Ra2 {[%emt 0:01:17]} 28. Nxe5 {[%emt 0:00:02]} Nxe5 {[%emt 0:00:08]} 29. Bf6+ {[%emt 0:00:13]} Bg7 {[%emt 0:00:25]} 30. dxe5 {[%emt 0:00:00]} 1-0

[Event "CCT Chessable Masters Play-In 2025"]
[Site "Online"]
[Date "2025.02.17"]
[Round "2.10"]
[White "Vidit, Santosh Gujrathi"]
[Black "Nguyen, Ngoc Truong Son"]
[Result "1/2-1/2"]
[ECO "C54"]
[WhiteElo "2721"]
[BlackElo "2632"]
[PlyCount "67"]
[EventDate "2025.02.13"]
[EventType "swiss"]
[EventCountry "NET"]
[TimeControl "600"]
[WhiteClock "0:02:22"]
[BlackClock "0:04:45"]

1. e4 {[%emt 0:00:08]} e5 {[%emt 0:00:05]} 2. Nf3 {[%emt 0:00:01]} Nc6 {[%emt 0:00:01]} 3. Bc4 {[%emt 0:00:01]} Bc5 {[%emt 0:00:02]} 4. c3 {[%emt 0:00:01]} Nf6 {[%emt 0:00:03]} 5. d3 {[%emt 0:00:00]} a6 {[%emt 0:00:08]} 6. h3 {[%emt 0:00:08]} O-O {[%emt 0:00:10]} 7. Nbd2 {[%emt 0:00:02]} d6 {[%emt 0:00:13]} 8. O-O {[%emt 0:00:03]} Ba7 {[%emt 0:00:10]} 9. a4 {[%emt 0:00:01]} Be6 {[%emt 0:00:03]} 10. Bxe6 {[%emt 0:00:04]} fxe6 {[%emt 0:00:02]} 11. b4 {[%emt 0:00:00]} Qd7 {[%emt 0:00:10]} 12. Re1 {[%emt 0:00:09]} Ne7 {[%emt 0:00:10]} 13. d4 {[%emt 0:00:20]} exd4 {[%emt 0:00:11]} 14. cxd4 {[%emt 0:00:00]} d5 {[%emt 0:00:11]} 15. e5 {[%emt 0:00:06]} Ne4 {[%emt 0:00:08]} 16. Nxe4 {[%emt 0:00:07]} dxe4 {[%emt 0:00:00]} 17. Rxe4 {[%emt 0:00:02]} Nd5 {[%emt 0:00:02]} 18. Bd2 {[%emt 0:00:06]} Rf5 {[%emt 0:00:17]} 19. Nh4 {[%emt 0:00:27]} Rf7 {[%emt 0:00:04]} 20. Ra3 {[%emt 0:00:02]} Raf8 {[%emt 0:00:04]} 21. Rg3 {[%emt 0:00:13]} Ne7 {[%emt 0:00:58]} 22. Bg5 {[%emt 0:00:55]} Qd5 {[%emt 0:00:14]} 23. Bxe7 {[%emt 0:01:18]} Qxe4 {[%emt 0:00:10]} 24. Rg4 {[%emt 0:00:24]} Qxg4 {[%emt 0:00:16]} 25. Qxg4 {[%emt 0:00:09]} Rxe7 {[%emt 0:00:01]} 26. Nf3 {[%emt 0:00:04]} h6 {[%emt 0:00:35]} 27. b5 {[%emt 0:00:35]} axb5 {[%emt 0:00:07]} 28. axb5 {[%emt 0:00:01]} Rd8 {[%emt 0:00:07]} 29. Qe4 {[%emt 0:00:30]} Rd5 {[%emt 0:00:05]} 30. Qd3 {[%emt 0:00:16]} Red7 {[%emt 0:00:21]} 31. Qg6 {[%emt 0:00:40]} Re7 {[%emt 0:00:03]} 32. Qd3 {[%emt 0:00:26]} Red7 {[%emt 0:00:02]} 33. Qg6 {[%emt 0:00:18]} Re7 {[%emt 0:00:02]} 34. Qd3 {[%emt 0:00:01]} 1/2-1/2

[Event "CCT Chessable Masters Play-In 2025"]
[Site "Online"]
[Date "2025.02.17"]
[Round "2.11"]
[White "Madaminov, Mukhiddin"]
[Black "Tabatabaei, M. Amin"]
[Result "0-1"]
[ECO "C58"]
[WhiteElo "2521"]
[BlackElo "2666"]
[PlyCount "58"]
[EventDate "2025.02.13"]
[EventType "swiss"]
[EventCountry "NET"]
[TimeControl "600"]
[WhiteClock "0:03:26"]
[BlackClock "0:03:48"]

1. e4 {[%emt 0:00:01]} e5 {[%emt 0:00:15]} 2. Nf3 {[%emt 0:00:01]} Nc6 {[%emt 0:00:45]} 3. Bc4 {[%emt 0:00:02]} Nf6 {[%emt 0:00:05]} 4. Ng5 {[%emt 0:00:01]} d5 {[%emt 0:00:01]} 5. exd5 {[%emt 0:00:01]} Na5 {[%emt 0:00:00]} 6. Bb5+ {[%emt 0:00:01]} c6 {[%emt 0:00:00]} 7. dxc6 {[%emt 0:00:00]} bxc6 {[%emt 0:00:01]} 8. Bd3 {[%emt 0:00:01]} Nd5 {[%emt 0:00:02]} 9. Nf3 {[%emt 0:00:01]} Bd6 {[%emt 0:00:02]} 10. O-O {[%emt 0:00:01]} O-O {[%emt 0:00:03]} 11. Re1 {[%emt 0:00:01]} f5 {[%emt 0:00:00]} 12. Nxe5 {[%emt 0:00:01]} Qf6 {[%emt 0:00:01]} 13. Nf3 {[%emt 0:00:01]} g5 {[%emt 0:00:00]} 14. Nc3 {[%emt 0:00:03]} g4 {[%emt 0:00:21]} 15. Rb1 {[%emt 0:00:01]} gxf3 {[%emt 0:01:14]} 16. Nxd5 {[%emt 0:00:01]} cxd5 {[%emt 0:00:07]} 17. Qxf3 {[%emt 0:00:02]} Be6 {[%emt 0:00:54]} 18. b3 {[%emt 0:00:04]} Rae8 {[%emt 0:00:29]} 19. Bb2 {[%emt 0:00:18]} Qg6 {[%emt 0:00:01]} 20. h3 {[%emt 0:00:41]} Re7 {[%emt 0:00:08]} 21. Re2 {[%emt 0:00:13]} Nc6 {[%emt 0:00:07]} 22. a3 {[%emt 0:03:06]} Nd8 {[%emt 0:00:08]} 23. Rbe1 {[%emt 0:00:05]} Nf7 {[%emt 0:00:04]} 24. Qe3 {[%emt 0:00:24]} Ng5 {[%emt 0:00:18]} 25. Kf1 {[%emt 0:00:13]} Ne4 {[%emt 0:00:28]} 26. Qd4 {[%emt 0:00:25]} Kf7 {[%emt 0:00:32]} 27. Bxe4 {[%emt 0:00:16]} fxe4 {[%emt 0:00:03]} 28. Rxe4 {[%emt 0:00:21]} dxe4 {[%emt 0:00:00]} 29. Qxd6 {[%emt 0:00:08]} Bc4+ {[%emt 0:00:03]} 0-1

[Event "CCT Chessable Masters Play-In 2025"]
[Site "Online"]
[Date "2025.02.17"]
[Round "2.12"]
[White "Le, Tuan Minh"]
[Black "Banusz, Tamas"]
[Result "1-0"]
[ECO "D14"]
[WhiteElo "2598"]
[BlackElo "2582"]
[PlyCount "109"]
[EventDate "2025.02.13"]
[EventType "swiss"]
[EventCountry "NET"]
[TimeControl "600"]
[WhiteClock "0:00:37"]
[BlackClock "0:00:09"]

1. d4 {[%emt 0:00:01]} d5 {[%emt 0:00:02]} 2. Nf3 {[%emt 0:00:01]} Nf6 {[%emt 0:00:00]} 3. Bf4 {[%emt 0:00:01]} c5 {[%emt 0:00:05]} 4. c3 {[%emt 0:00:01]} cxd4 {[%emt 0:00:03]} 5. cxd4 {[%emt 0:00:01]} Nc6 {[%emt 0:00:01]} 6. Nc3 {[%emt 0:00:01]} Bf5 {[%emt 0:00:01]} 7. Qb3 {[%emt 0:00:02]} Qb6 {[%emt 0:00:01]} 8. Qxb6 {[%emt 0:00:13]} axb6 {[%emt 0:00:01]} 9. e3 {[%emt 0:00:03]} e6 {[%emt 0:00:01]} 10. Bb5 {[%emt 0:00:02]} Bb4 {[%emt 0:00:01]} 11. O-O {[%emt 0:00:28]} Bxc3 {[%emt 0:00:13]} 12. bxc3 {[%emt 0:00:00]} Ke7 {[%emt 0:00:01]} 13. Nh4 {[%emt 0:01:37]} Bc2 {[%emt 0:00:09]} 14. Rfc1 {[%emt 0:00:02]} Ba4 {[%emt 0:00:09]} 15. Bd3 {[%emt 0:00:01]} Rhc8 {[%emt 0:00:54]} 16. Rab1 {[%emt 0:00:04]} Nd7 {[%emt 0:00:06]} 17. Nf3 {[%emt 0:00:05]} h6 {[%emt 0:00:32]} 18. Nd2 {[%emt 0:00:06]} Na5 {[%emt 0:00:15]} 19. e4 {[%emt 0:00:15]} g5 {[%emt 0:00:16]} 20. Bg3 {[%emt 0:00:03]} dxe4 {[%emt 0:00:06]} 21. Nxe4 {[%emt 0:00:03]} Nc4 {[%emt 0:00:49]} 22. Bxc4 {[%emt 0:00:53]} Rxc4 {[%emt 0:00:00]} 23. Bd6+ {[%emt 0:00:00]} Kd8 {[%emt 0:00:09]} 24. Bb4 {[%emt 0:00:01]} Rc7 {[%emt 0:00:21]} 25. c4 {[%emt 0:01:01]} f5 {[%emt 0:00:12]} 26. Nd6 {[%emt 0:00:08]} Nf6 {[%emt 0:00:03]} 27. f3 {[%emt 0:00:14]} Be8 {[%emt 0:00:15]} 28. a3 {[%emt 0:00:03]} Kd7 {[%emt 0:00:03]} 29. Re1 {[%emt 0:00:11]} Ra4 {[%emt 0:01:01]} 30. d5 {[%emt 0:00:42]} exd5 {[%emt 0:00:21]} 31. Nxe8 {[%emt 0:00:01]} Nxe8 {[%emt 0:00:05]} 32. cxd5 {[%emt 0:00:20]} Nf6 {[%emt 0:00:44]} 33. Re6 {[%emt 0:00:17]} Rxb4 {[%emt 0:00:12]} 34. axb4 {[%emt 0:00:02]} Nxd5 {[%emt 0:00:05]} 35. Rxh6 {[%emt 0:00:01]} Rc6 {[%emt 0:00:25]} 36. Rxc6 {[%emt 0:00:45]} bxc6 {[%emt 0:00:00]} 37. Kf2 {[%emt 0:00:01]} Kd6 {[%emt 0:00:02]} 38. g3 {[%emt 0:00:02]} g4 {[%emt 0:00:03]} 39. Rb3 {[%emt 0:00:11]} Ke5 {[%emt 0:00:15]} 40. fxg4 {[%emt 0:00:04]} fxg4 {[%emt 0:00:01]} 41. Ke2 {[%emt 0:00:01]} Kd4 {[%emt 0:00:03]} 42. b5 {[%emt 0:00:07]} c5 {[%emt 0:00:03]} 43. Ra3 {[%emt 0:00:02]} c4 {[%emt 0:00:04]} 44. Ra8 {[%emt 0:00:04]} Kc3 {[%emt 0:00:20]} 45. Rd8 {[%emt 0:00:01]} Nb4 {[%emt 0:00:06]} 46. Rd6 {[%emt 0:00:04]} Kb2 {[%emt 0:00:07]} 47. Rd4 {[%emt 0:00:32]} Kb3 {[%emt 0:00:06]} 48. Rxg4 {[%emt 0:00:11]} Nd5 {[%emt 0:00:16]} 49. Rd4 {[%emt 0:00:01]} Nc3+ {[%emt 0:00:01]} 50. Ke1 {[%emt 0:00:02]} Nxb5 {[%emt 0:00:01]} 51. Rd8 {[%emt 0:00:02]} c3 {[%emt 0:00:02]} 52. Rc8 {[%emt 0:00:01]} Nd4 {[%emt 0:00:04]} 53. h4 {[%emt 0:00:02]} c2 {[%emt 0:00:13]} 54. Kd2 {[%emt 0:00:02]} Kb2 {[%emt 0:00:22]} 55. Kd3 {[%emt 0:00:04]} 1-0

[Event "CCT Chessable Masters Play-In 2025"]
[Site "Online"]
[Date "2025.02.17"]
[Round "2.13"]
[White "Ponomariov, Ruslan"]
[Black "Niemann, Hans Moke"]
[Result "0-1"]
[ECO "C77"]
[WhiteElo "2628"]
[BlackElo "2734"]
[PlyCount "52"]
[EventDate "2025.02.13"]
[EventType "swiss"]
[EventCountry "NET"]
[TimeControl "600"]
[WhiteClock "0:04:15"]
[BlackClock "0:07:06"]

1. e4 {[%emt 0:00:01]} e5 {[%emt 0:00:12]} 2. Nf3 {[%emt 0:00:01]} Nc6 {[%emt 0:00:02]} 3. Bb5 {[%emt 0:00:02]} a6 {[%emt 0:00:04]} 4. Ba4 {[%emt 0:00:02]} Nf6 {[%emt 0:00:00]} 5. O-O {[%emt 0:00:03]} Be7 {[%emt 0:00:02]} 6. d3 {[%emt 0:00:01]} b5 {[%emt 0:00:09]} 7. Bb3 {[%emt 0:00:02]} d6 {[%emt 0:00:03]} 8. a3 {[%emt 0:00:09]} O-O {[%emt 0:00:02]} 9. Nc3 {[%emt 0:00:03]} Nb8 {[%emt 0:00:00]} 10. Bd2 {[%emt 0:00:33]} c6 {[%emt 0:00:08]} 11. a4 {[%emt 0:00:06]} b4 {[%emt 0:00:02]} 12. Ne2 {[%emt 0:00:02]} a5 {[%emt 0:00:01]} 13. Ng3 {[%emt 0:00:06]} Nbd7 {[%emt 0:00:07]} 14. d4 {[%emt 0:00:04]} Ba6 {[%emt 0:00:16]} 15. Re1 {[%emt 0:00:01]} c5 {[%emt 0:00:18]} 16. c3 {[%emt 0:00:19]} c4 {[%emt 0:00:10]} 17. Bc2 {[%emt 0:00:01]} b3 {[%emt 0:00:01]} 18. Bb1 {[%emt 0:00:01]} Re8 {[%emt 0:00:01]} 19. Nf5 {[%emt 0:00:07]} Bf8 {[%emt 0:00:03]} 20. Bg5 {[%emt 0:00:01]} h6 {[%emt 0:00:06]} 21. Bh4 {[%emt 0:00:06]} Qc7 {[%emt 0:00:04]} 22. Nd2 {[%emt 0:00:07]} g6 {[%emt 0:00:32]} 23. Ne3 {[%emt 0:00:01]} Bg7 {[%emt 0:00:03]} 24. Qf3 {[%emt 0:01:01]} Rab8 {[%emt 0:00:14]} 25. h3 {[%emt 0:00:10]} exd4 {[%emt 0:00:14]} 26. cxd4 {[%emt 0:02:35]} c3 {[%emt 0:00:00]} 0-1